Cogmind - Beta 17.1 @@@ ROGUE MODE // 2026.08.26 @ 19:07:10 Player: Godsword Result: Self-destructed Performance ------------- Evolutions (1) 500 Regions Visited (3) 600 Robots Destroyed (8) 40 Value Destroyed (127) 127 Prototype IDs (0) 0 Alien Tech Used (0) 0 Bonus (0) 0 TOTAL SCORE: 1267 Bonus ------- None Cogmind --------- Core Integrity 372/400 Matter 276/300 Energy 264/265 System Corruption 2% Temperature Warm (185) Movement Hovering (56) Location -9/Materials Parts ------- > --- POWER (1) -------- Improved Ion Engine > --- PROPULSION (3) --- Hover Unit Hover Unit > --- UTILITY (3) ------ Structural Scanner Improved Terrain Scanner > --- WEAPON (2) ------- Medium Laser Small Laser > --- INVENTORY (5) ---- Improved Ion Engine Compact Matter Pod (150) Hardened Light Armor Plating Small Laser Peak State ------------ > --- POWER ------------ Improved Ion Engine > --- PROPULSION ------- Armored Wheel Armored Wheel > --- UTILITY ---------- Small Storage Unit Improved Terrain Scanner > --- WEAPON ----------- Medium Laser Small Laser > --- INVENTORY -------- Compact Wheel Compact Wheel Armored Wheel Armored Wheel ECM Suite Hardened Light Armor Plating Small Laser Mining Laser [Rating: 13] Favorites ----------- Power Improved Ion Engine Engine Improved Ion Engine Propulsion Armored Wheel Wheel Armored Wheel Hover Unit Hover Unit Flight Unit VTOL Module Utility Improved Terrain Scanner Device Improved Terrain Scanner Storage Small Storage Unit Weapon Medium Laser Energy Gun Medium Laser Build | -11 -10 -10 -9 ------- Run | Yrd Mat Min Mat Slots Evolved 2 | . . . 2 Power . | . . . . Propulsion 1 | . . . 1 Utility 1 | . . . 1 Weapon . | . . . . Parts Attached 16 | 7 5 2 2 Power 2 | 1 1 . . Engine 2 | 1 1 . . Core . | . . . . Reactor . | . . . . Propulsion 8 | 2 3 2 1 Treads . | . . . . Leg . | . . . . Wheel 5 | 2 3 . . Hover 2 | . . 2 . Flight 1 | . . . 1 Utility 4 | 2 1 . 1 Device 2 | 1 . . 1 Storage 2 | 1 1 . . Processor . | . . . . Hackware . | . . . . Protection . | . . . . Artifact . | . . . . Weapon 2 | 2 . . . Energy Gun 2 | 2 . . . Energy Cannon . | . . . . Ballistic Gun . | . . . . Ballistic Cannon . | . . . . Launcher . | . . . . Special Weapon . | . . . . Impact Weapon . | . . . . Slashing Weapon . | . . . . Piercing Weapon . | . . . . Special Melee Weapon . | . . . . Unidentified Prototypes . | . . . . Parts Lost 1 | . . . 1 Power . | . . . . Propulsion 1 | . . . 1 Utility . | . . . . Weapon . | . . . . Highest Loss Streak 1 | . . . 1 To Critical Strikes . | . . . . Average Backups 5 | 2 7 6 4 Power . | . . 1 1 Propulsion 2 | . 3 3 . Utility 1 | . 1 1 2 Weapon 1 | . 1 1 1 Tool/Special . | . . . . Unused Backups 12 | . 6 2 4 Power 2 | . 1 . 1 Propulsion 4 | . 3 1 . Utility 4 | . 1 1 2 Weapon 2 | . 1 . 1 Tool/Special . | . . . . Average Slot Usage (%) 94 | . 100 96 79 Engine 13 | . 14 14 11 Wheel 19 | . 28 20 . Hover 7 | . . 7 22 Device 15 | . 14 14 20 Storage 9 | . 14 10 . Energy Gun 26 | . 28 28 22 Peak Build Rating 13 | 9 13 13 12 Average Rating 10 | 5 11 11 10 On Entrance 7 | . 9 13 9 Avg Prop Armor Cover (%) 3 | . . . 3 Naked Turns . | . . . . Heaviest Build 31 | 12 31 31 12 Greatest Support 32 | 32 32 24 12 Greatest Overweight (x) 1 | . 1 1 . Average Overweight (x) . | . . . . Largest Inventory Capacity 15 | 8 15 15 5 Average Capacity 8 | 6 9 12 5 Most Carried 10 | 5 10 10 4 Average Carried 5 | 2 7 6 4 Final Capacity 15 | 8 15 5 5 Final Carried 8 | 5 8 4 4 Class Distribution -------------------- 100% | Mutant Dominant Class ---------------- Mutant | -10/Materials Mutant | -10/Mines Mutant | -9/Materials Resources | -11 -10 -10 -9 ----------- Run | Yrd Mat Min Mat Matter Collected 350 | 237 63 50 . Remotely . | . . . . Salvage Created 249 | 140 109 . . Parts 16 | 11 5 . . Haulers Intercepted . | . . . . Recyclers Shooed 1 | 1 . . . Parts Field Recycled . | . . . . Retrieved Matter . | . . . . Parts Self-Destructed . | . . . . Prevented . | . . . . Parts Restored . | . . . . Kills | -11 -10 -10 -9 ------- Run | Yrd Mat Min Mat Combat Hostiles Destroyed 2 | . 2 . . Guns 2 | . 2 . . Classes Destroyed 5 | 2 3 . . Tunneler 3 | 3 . . . Recycler 1 | 1 . . . Operator 1 | . 1 . . Watcher 1 | . 1 . . Grunt 2 | . 2 . . Best Kill Streak 2 | 2 2 . . Combat Bots Only 1 | . 1 . . Max Kills in Single Turn 1 | 1 1 . . Gunslinging . | . . . . Exploded . | . . . . Melee . | . . . . Uniques/NPCs Destroyed . | . . . . Combat | -11 -10 -10 -9 -------- Run | Yrd Mat Min Mat Hostile Shots Fired 52 | . 33 . 19 Missed 22 | . 12 . 10 Hits 30 | . 21 . 9 Projectile 30 | . 21 . 9 Damage Taken 303 | . 197 . 106 Core 64 | . 36 . 28 Absorbed by Shields . | . . . . Core Remaining (%) 92 | 100 . 85 . Volleys Fired 29 | 9 18 . 2 Largest 2 | 2 2 . 2 Hottest 90 | 90 90 . 90 Shots Fired 58 | 18 36 . 4 Gun 58 | 18 36 . 4 Cannon . | . . . . Launcher . | . . . . Special . | . . . . Kinetic . | . . . . Thermal 58 | 18 36 . 4 Explosive . | . . . . Electromagnetic . | . . . . Robot Hit Streak 7 | 5 6 . 7 Robot Miss Streak 5 | 2 5 . 2 Penetration Max . | . . . . Secondary Targets . | . . . . Shots Hit Robots 31 | 10 19 . 2 Core Hits 12 | 5 7 . . Critical Kills . | . . . . Critical Parts Destroyed . | . . . . Critical Strikes 1 | 1 . . . Burn 1 | 1 . . . Melee Attacks . | . . . . Impact . | . . . . Slashing . | . . . . Piercing . | . . . . Sneak Attacks . | . . . . Combat Hostiles . | . . . . Follow-up Attacks . | . . . . Damage Inflicted 371 | 120 226 . 25 Guns 371 | 120 226 . 25 Cannons . | . . . . Explosions . | . . . . Melee . | . . . . Ramming . | . . . . Kinetic . | . . . . Thermal 371 | 120 226 . 25 Explosive . | . . . . Electromagnetic . | . . . . Impact . | . . . . Slashing . | . . . . Piercing . | . . . . Highest Corruption 2 | . . . 2 Average Corruption 2 | . . . 2 Corruption Purged . | . . . . Corruption Blocked . | . . . . Effects 2 | . . . 2 Matter Fused 1 | . . . 1 Heat Flow Errors 1 | . . . 1 Overload Shots . | . . . . Overflow Damage . | . . . . Projectiles . | . . . . Explosions . | . . . . Melee . | . . . . Knockbacks . | . . . . Impact . | . . . . Kinetic . | . . . . Secondary . | . . . . Self-Inflicted Damage . | . . . . Shots . | . . . . Rammed . | . . . . Targets Rammed . | . . . . Kicked . | . . . . Crushed . | . . . . Highest Temperature 285 | 150 261 . 285 Average Temperature 88 | 71 85 . 151 Received Heat Transfer 105 | . 48 . 57 Siege Activations . | . . . . Martial Activations . | . . . . Shielding Activations . | . . . . Robots Disrupted . | . . . . Combat Hostiles . | . . . . Robots Corrupted . | . . . . Combat Hostiles . | . . . . Parts Fried . | . . . . Impact Corruptions . | . . . . Robots Melted . | . . . . Combat Hostiles . | . . . . Parts Melted 2 | . 2 . . Heat Transferred 1053 | 408 583 . 62 Parts Sabotaged . | . . . . Parts Stolen . | . . . . Parts Stripped . | . . . . Power Chain Reactions . | . . . . Alert | -11 -10 -10 -9 ------- Run | Yrd Mat Min Mat Maximum Alert Level . | . . . . Low Security (%) 100 | 100 100 100 100 Level 1 . | . . . . Level 2 . | . . . . Level 3 . | . . . . Level 4 . | . . . . Level 5 . | . . . . High Security . | . . . . Max Security . | . . . . Peak Influence 42 | 10 42 4 20 Initial 4 | . . 4 . Average 7 | 1 15 . 6 Influence Increases 137 | 20 72 . 45 Destroy 0b10 Robot/C 40 | . 40 . . Destroy 0b10 Robot/NC 30 | 20 10 . . Destroy Leader 22 | . 22 . . Partial Spotted 15 | . . . 15 Lose Combat Pursuer 30 | . . . 30 Influence Decreases 127 | 20 60 12 35 Entered New Map 8 | . . 8 . Time Decay 109 | 20 60 4 25 Lost Part 10 | . . . 10 Squads Dispatched 4 | . 2 . 2 Investigation 1 | . . . 1 Extermination . | . . . . Reinforcement 3 | . 2 . 1 Assault . | . . . . Garrison . | . . . . Intercept . | . . . . Searches Triggered . | . . . . Construction Impeded . | . . . . Haulers Reinforced . | . . . . Active Scanning Responses . | . . . . Cargo Convoy Interrupts . | . . . . Stealth | -11 -10 -10 -9 --------- Run | Yrd Mat Min Mat Distress Signals . | . . . . Communications Jammed . | . . . . Distress Signals . | . . . . Times Spotted 14 | . 8 . 6 Peak Tracking Total 4 | . 4 . 4 Tactical Retreats 1 | . . . 1 Traps | -11 -10 -10 -9 ------- Run | Yrd Mat Min Mat Traps Triggered 1 | . . . 1 Indirectly . | . . . . Trap Hack Attempts . | . . . . Triggered . | . . . . Disarmed . | . . . . Reprogrammed . | . . . . Reused . | . . . . Traps Extracted . | . . . . Installed . | . . . . Triggered . | . . . . Machines | -11 -10 -10 -9 ---------- Run | Yrd Mat Min Mat Machines Disabled . | . . . . Max in Single Turn . | . . . . Machines Repaired . | . . . . Machines Dismantled . | . . . . Machines Sabotaged . | . . . . Overloaded Fab Kills . | . . . . Hacking | -11 -10 -10 -9 --------- Run | Yrd Mat Min Mat Machines Accessed 2 | . 1 . 1 Terminals . | . . . . Fabricators . | . . . . Repair Stations 1 | . 1 . . Recycling Units 1 | . . . 1 Scanalyzers . | . . . . Garrison Access . | . . . . Total Hacks 8 | . 5 . 3 Successful 1 | . . . 1 Failed 7 | . 5 . 2 Catastrophic 2 | . 1 . 1 Database Lockouts . | . . . . Manual . | . . . . Terminals . | . . . . Fabricators . | . . . . Repair Stations 5 | . 5 . . Recycling Units 3 | . . . 3 Scanalyzers . | . . . . Garrison Access . | . . . . Terminal Hacks . | . . . . Fabricator Hacks . | . . . . Repair Station Hacks . | . . . . Recycling Unit Hacks 1 | . . . 1 Retrieve Matter 1 | . . . 1 Scanalyzer . | . . . . Garrison Access Hacks . | . . . . Unauthorized Hacks . | . . . . Terminals . | . . . . Fabricators . | . . . . Repair Stations . | . . . . Recycling Units . | . . . . Scanalyzers . | . . . . Garrison Access . | . . . . Data Cores Recovered . | . . . . Used . | . . . . Hacking Detections 2 | . 1 . 1 Full Trace Events 2 | . 1 . 1 Feedback Events . | . . . . Feedback Blocked . | . . . . Robot Schematics Acquired . | . . . . Robots Built . | . . . . Authchips . | . . . . Time . | . . . . Total Robot Build Rating . | . . . . Part Schematics Acquired . | . . . . Parts Built . | . . . . Authchips . | . . . . Time . | . . . . Total Part Build Rating . | . . . . Part Studies Acquired . | . . . . Parts Repaired . | . . . . Time . | . . . . Parts Recycled . | . . . . Recycled Matter . | . . . . Retrieved Matter . | . . . . Retrieved Components . | . . . . Parts Scanalyzed . | . . . . Part Schematics Acquired . | . . . . Parts Damaged . | . . . . Bothacking | -11 -10 -10 -9 ------------ Run | Yrd Mat Min Mat Used RIF Installer . | . . . . Robots Hacked . | . . . . Non-combat . | . . . . Combat . | . . . . Robot Hacks Applied . | . . . . Relay Couplers Released . | . . . . Fabnet Peak Effective % . | . . . . Robots Rewired . | . . . . Allies Hacked . | . . . . Hacks Repelled . | . . . . Allies | -11 -10 -10 -9 -------- Run | Yrd Mat Min Mat Total Allies . | . . . . Largest Group . | . . . . Highest-Rated Group . | . . . . Highest-Rated Ally . | . . . . Total Orders . | . . . . Ally Attacks . | . . . . Total Damage . | . . . . Kills . | . . . . Allies Corrupted . | . . . . Allies Melted . | . . . . Intel | -11 -10 -10 -9 ------- Run | Yrd Mat Min Mat Active Infowar (turns) 431 | 11 182 141 97 Terrain 431 | 11 182 141 97 Structural 93 | . . . 93 Robot Analysis Total . | . . . . Derelict Logs Recovered 1 | . . 1 . Drone Launches . | . . . . Drone Recoveries . | . . . . Exploration | -11 -10 -10 -9 ------------- Run | Yrd Mat Min Mat Turns Passed 507 | 87 182 141 97 Spaces Moved 465 | 45 111 152 157 Core 1 | 1 . . . Treads . | . . . . Legs . | . . . . Wheels 249 | 44 111 94 . Hover 215 | . . 58 157 Flight . | . . . . Fastest Speed 50 | 50 90 56 56 Average Speed 80 | 98 98 87 56 Slowest Speed 120 | 100 105 120 56 Overloaded Moves . | . . . . Propulsion Burnouts . | . . . . Robots Hopped . | . . . . Potential Cave-ins . | . . . . Cave-ins Triggered . | . . . . Exploration Rate (%) 23 | 3 25 44 21 Regions Visited 3 Branch Regions 1 Pre-discovered Areas 1 | . . 1 . Known Exits Taken . | . . . . Unknown Exits Taken 3 | 1 1 1 . Scrap Searched . | . . . . Spaces Dug . | . . . . Terrain Destroyed . | . . . . Melee . | . . . . Projectile . | . . . . AOE . | . . . . Terrain Rammed . | . . . . Walls Destroyed . | . . . . Machines Disabled . | . . . . Actions | -11 -10 -10 -9 --------- Run | Yrd Mat Min Mat Total 540 | 65 153 161 161 Wait . | . . . . Move 462 | 44 110 151 157 Hop . | . . . . Pick Up 16 | 5 8 3 . Fast Attach 10 | 7 . 1 2 Attach 2 | . 2 . . Detach 2 | . 2 . . Swap 5 | . 4 1 . Drop 14 | . 9 5 . Fire 29 | 9 18 . 2 Melee . | . . . . Ram . | . . . . Kick . | . . . . Crush . | . . . . Escape Stasis . | . . . . Rewire . | . . . . Trap . | . . . . Miscellaneous . | . . . . Route ------- -11/Scrapyard -10/Materials -10/Mines -9/Materials History --------- Turn | Location | Event 14 | -11/Scrapyard | Discovered new exit (range 16) 88 | -11/Scrapyard | Entered Materials 261 | -10/Materials | Discovered new exit (range 10) 270 | -10/Materials | Entered Mines 317 | -10/Mines | Build established: Mutant 328 | -10/Mines | Met a Derelict bent on vengeance 345 | -10/Mines | Learned location of Zion (-7) 407 | -10/Mines | Discovered new exit (range 8) 411 | -10/Mines | Entered Materials 411 | -9/Materials | Evolved 2 slots: Propulsion x1, Utility x1 508 | -9/Materials | Self-destructed Last Messages --------------- GOAL=ESCAPE 00415_ Acquired Structural Scanner. 00425_ Connecting with Recycling Unit... 00425_ Current location identified: Materials 00425_ ALERT: Suspicious activity at Recycling Unit M001. Dispatching Investigation squad. 00454_ Triggered Shock Trap. 00454_ The floor emits a surge of raw power. 00454_ System corrupted (+2). 00456_ System corrupted: Matter fused (-9). 00476_ Acquired VTOL Module. 00483_ K-01 Serf cleans the Nuclear Reactor. 00486_ K-01 Serf collects debris. 00492_ O-16 Technician: "IFF HANDSHAKE FAILED. SECURING TERMINAL." 00496_ Destroyed Datajack. 00499_ System corrupted: Heat flow error (+235). 00501_ ALERT: Hostiles spotted, dispatching reinforcements to Terminal M003. 00508_ VTOL Module destroyed. Map ----- +----------------------------------------------------+ | ???????????##|| # # ###### """ | | ????????#####|| # ############# """ | | ????????############ #########??## | | ????????## # ##??#??????## | | ????????## """ # ##?????????## | | ????????## """ + ##???????#?####### | | ????????## """ # ##?????????####### | | ????????## """ # # ??? ???#??????## | | ??????#??? """ =# # ?? ??#????????## | | ????????## # # ???????????#??## | | ????????## # # ??? ??????#???## | | ????????############ # ??????????????## | | ????????##### T + # ??????????????## | | ???????????## # # ??????????????## | | ???????????## """ # # ????#?????????? | | ???????????## """ # # ?????????????#?? | | ???????????## """ # # ???????????????? | | ???????????## [# # ???????????????# | | ???????????##+###### # ##?????????# | | ???????????## ###### ###+####?????????# | | ????????#??## ?????????? | | ???????????## ?????????? | | #??????????## ?????????? | | ???############ """ #####??????????? | | ???############ """ #####??????????? | | ???## # @ """ # ?????????????? | | ##### """ """ # # ?????????????? | | ##### """ """ # # ?????????????? | | ## + """ """ # + ?????????????? | | ## ## """ # * # ?????????????? | | ## ## """ + ##### ## ?????????????? | | ## ## # ##### ###?????????????? | | ## ## ! # ##??? ###?????????????? | | ## ############gg ##???/###?????????????? | | ## ##### # # ??? ##???#?????????? | | ##+##### ? ?? # # ? ##?????#???????? | | # T # ???? # # ##?????????????? | | # # ???? + + ##?????????????? | | # # ?"?? # # [ ##?????????????? | | # # # # ##?????????????? | | # ##+##### ########## ???????????? | | # """ # + "?????????? | | # """ / ######## # ???????????? | | # """ # ########?#????????????? | | # # ##### ###????????????????????? | | # """ # ##### ###????????????????????? | | # """ # ##?##+##?????????????????????? | | # """ # # ? ?????????????????????? | | # # # ???????????????????????????? | | ## ##### # ?????????????? ????????????? | +----------------------------------------------------+ Best States ------------- Heat Dissipation 28 Energy Generation 12 Energy Capacity 265 Matter Stores 300 Matter Capacity 300 Sight Range 16 Terrain Scan Range 16 Terrain Scan Density 10 Evasion (%) 53 Item Schematics ----------------- None Robot Schematics ------------------ None Fabricated ------------ Nothing Repaired ---------- Nothing Studied --------- None Alien Tech Used ----------------- None Achievements -------------- None Challenges ------------ None Game ------ Seed PhasingAngularScreen Manual? 0 Play Time 00:08:27 Cumulative 0.9 hours Start 2026.08.26 @ 18:59:59 End 2026.08.26 @ 19:07:10 Sessions 1 Manual Loads 0 Difficulty Rogue Special Mode None Game No. 8 Rogue 8 Adventurer 0 Explorer 0 Win Type - Total 0 Types 0/0/0/0/0/0/0/0/0/0 Lore% 0 Gallery% 5 Achievement% 41 Wizard Run 0 Options --------- Layout 2 ASCII 0 Keyboard 0 Movement Arrows Keybinds 0 Fullscreen 1 Font 16/SmallcapsGlow Map View 50x49 Zoom Use 0% Tactical HUD 1 Map Filters NONE Filters NONE Steam SD RUN: 311b35fb-c753-4b2c-a2c0-7e78750f2390